[Event "EYCC Girls U10 2018"]
[Site "Riga"]
[Date "2018.08.27"]
[Round "7"]
[White "Vlasova, Olesia"]
[Black "Shukhman, Anna"]
[Result "0-1"]
[ECO "B43"]
[WhiteElo "1693"]
[BlackElo "1577"]
[Annotator "NA"]
[PlyCount "146"]
[EventDate "2018.08.20"]
[EventType "swiss"]
[EventCountry "LAT"]
[SourceTitle "playchess.com"]
[Source "ChessBase"]
[SourceQuality "1"]
[TimeControl "40/5400+30:1800+30"]

1. e4 {[%emt 0:00:00]} c5 {[%emt 0:00:00]} 2. Nf3 {[%emt 0:00:00]} e6 {[%emt 0:00:00]} 3. d4 {[%emt 0:00:00]} cxd4 {[%emt 0:00:00]} 4. Nxd4 {[%emt 0:00:07]} a6 {[%emt 0:00:00]} 5. Nc3 {[%emt 0:00:11]} Qc7 {[%emt 0:00:00]} 6. Bd3 {[%emt 0:00:18]} b5 {[%emt 0:00:00]} 7. O-O {[%emt 0:00:14]} Bb7 {[%emt 0:00:02]} 8. Re1 {[%emt 0:00:14]} Nc6 {[%emt 0:00:14]} 9. Nxc6 {[%emt 0:00:13]} dxc6 {[%emt 0:00:14]} 10. e5 {[%emt 0:00:08]} Ne7 {[%emt 0:01:11]} 11. Bf4 {[%emt 0:02:32]} Nd5 {[%emt 0:01:13]} 12. Nxd5 {[%emt 0:01:08]} cxd5 {[%emt 0:00:17]} 13. Qg4 {[%emt 0:00:49]} g6 {[%emt 0:02:10]} 14. a4 {[%emt 0:01:44]} b4 {[%emt 0:00:44]} 15. Bg5 {[%emt 0:00:43]} h5 {[%emt 0:05:58]} 16. Qh4 {[%emt 0:01:39]} Be7 {[%emt 0:03:22]} 17. Bxe7 {[%emt 0:04:04]} Qxe7 {[%emt 0:00:06]} 18. Qd4 {[%emt 0:00:26]} a5 {[%emt 0:03:55]} 19. Bb5+ {[%emt 0:00:48]} Kf8 {[%emt 0:00:13]} 20. Qb6 {[%emt 0:01:46]} Kg7 {[%emt 0:00:44]} 21. Rad1 {[%emt 0:01:54]} Rhc8 {[%emt 0:04:05]} 22. Re2 {[%emt 0:08:24]} Rc5 {[%emt 0:04:04]} 23. Rdd2 {[%emt 0:03:51]} Qc7 {[%emt 0:02:04]} 24. Qxc7 {[%emt 0:01:19]} Rxc7 {[%emt 0:00:05]} 25. f3 {[%emt 0:01:33]} Ba6 {[%emt 0:02:08]} 26. Bxa6 {[%emt 0:00:51]} Rxa6 {[%emt 0:00:14]} 27. Kf2 {[%emt 0:02:00]} Rac6 {[%emt 0:00:19]} 28. h4 {[%emt 0:10:28]} Rc4 {[%emt 0:03:36]} 29. g3 {[%emt 0:00:17]} f6 {[%emt 0:05:58]} 30. exf6+ {[%emt 0:01:25]} Kxf6 {[%emt 0:00:05]} 31. f4 {[%emt 0:00:14]} R4c5 {[%emt 0:03:11]} 32. Kf3 {[%emt 0:04:23]} Rc4 {[%emt 0:02:03]} 33. Kf2 {[%emt 0:00:14]} R7c5 {[%emt 0:01:26]} 34. Kf3 {[%emt 0:02:09]} Ke7 {[%emt 0:04:10]} 35. Kf2 {[%emt 0:01:45]} Kd6 {[%emt 0:00:24]} 36. Kf3 {[%emt 0:00:41]} Rc8 {[%emt 0:00:37]} 37. Kf2 {[%emt 0:00:35]} Rf8 {[%emt 0:02:24]} 38. Kg2 {[%emt 0:01:13]} Rf7 {[%emt 0:03:43]} 39. Re5 {[%emt 0:01:45]} Rf5 {[%emt 0:07:21]} 40. Rxf5 {[%emt 0:00:00]} gxf5 {[%emt 0:00:00]} 41. Kf3 {[%emt 0:09:07]} Kc5 {[%emt 0:11:22]} 42. b3 {[%emt 0:01:49]} Rc3+ {[%emt 0:00:53]} 43. Kf2 {[%emt 0:00:37]} d4 {[%emt 0:00:34]} 44. Re2 {[%emt 0:08:21]} Kd6 {[%emt 0:01:58]} 45. Rd2 {[%emt 0:03:29]} Kd5 {[%emt 0:00:52]} 46. Kg2 {[%emt 0:01:23]} Ke4 {[%emt 0:01:34]} 47. Re2+ {[%emt 0:00:59]} Re3 {[%emt 0:00:40]} 48. Rd2 {[%emt 0:00:04]} d3 {[%emt 0:00:43]} 49. cxd3+ {[%emt 0:00:12]} Rxd3 {[%emt 0:00:17]} 50. Re2+ {[%emt 0:00:19]} Kd5 {[%emt 0:01:28]} 51. Re5+ {[%emt 0:00:12]} Kd6 {[%emt 0:00:03]} 52. Rxa5 {[%emt 0:00:13]} Rxb3 {[%emt 0:00:03]} 53. Rb5 {[%emt 0:00:45]} Rb2+ {[%emt 0:01:17]} 54. Kh3 {[%emt 0:00:43]} Kc6 {[%emt 0:01:20]} 55. Re5 {[%emt 0:01:47]} Ra2 {[%emt 0:09:18]} 56. Rxe6+ {[%emt 0:01:53]} Kc5 {[%emt 0:00:29]} 57. Re5+ {[%emt 0:00:15]} Kc4 {[%emt 0:00:14]} 58. Rxf5 {[%emt 0:01:15]} b3 {[%emt 0:00:15]} 59. Rxh5 {[%emt 0:00:24]} Rxa4 {[%emt 0:00:06]} 60. Rh8 {[%emt 0:01:32]} b2 {[%emt 0:00:35]} 61. Rb8 {[%emt 0:01:17]} Rb4 {[%emt 0:00:12]} 62. Rxb4+ {[%emt 0:00:12]} Kxb4 {[%emt 0:00:06]} 63. Kg4 {[%emt 0:00:25]} b1=Q {[%emt 0:00:07]} 64. Kg5 {[%emt 0:00:20]} Qh7 {[%emt 0:00:12]} 65. g4 {[%emt 0:02:47]} Kc5 {[%emt 0:00:06]} 66. h5 {[%emt 0:01:09]} Qg7+ {[%emt 0:02:00]} 67. Kf5 {[%emt 0:00:17]} Kd6 {[%emt 0:00:08]} 68. g5 {[%emt 0:00:11]} Qh7+ {[%emt 0:00:06]} 69. Kf6 {[%emt 0:00:28]} Qxh5 {[%emt 0:00:19]} 70. g6 {[%emt 0:01:51]} Qh4+ {[%emt 0:01:00]} 71. Kg7 {[%emt 0:00:09]} Qxf4 {[%emt 0:00:12]} 72. Kg8 {[%emt 0:00:30]} Ke7 {[%emt 0:00:20]} 73. g7 {[%emt 0:00:19]} Qg5 {[%emt 0:00:05]} 0-1

[Event "EYCC Girls U10 2018"]
[Site "Riga"]
[Date "2018.08.27"]
[Round "7"]
[White "Helliesen, Lykke Merlot"]
[Black "Maria, Lia Alexandra"]
[Result "1-0"]
[ECO "E39"]
[WhiteElo "1482"]
[BlackElo "1576"]
[Annotator "NA"]
[PlyCount "73"]
[EventDate "2018.08.20"]
[EventType "swiss"]
[EventCountry "LAT"]
[SourceTitle "playchess.com"]
[Source "ChessBase"]
[SourceQuality "1"]
[TimeControl "40/5400+30:1800+30"]

1. d4 {[%emt 0:00:00]} Nf6 {[%emt 0:00:00]} 2. c4 {[%emt 0:00:01]} e6 {[%emt 0:00:00]} 3. Nc3 {[%emt 0:00:26]} Bb4 {[%emt 0:00:36]} 4. Qc2 {[%emt 0:00:57]} c5 {[%emt 0:00:30]} 5. dxc5 {[%emt 0:01:14]} O-O {[%emt 0:02:34]} 6. e3 {[%emt 0:10:11]} Bxc5 {[%emt 0:01:42]} 7. Nf3 {[%emt 0:02:44]} Be7 {[%emt 0:02:11]} 8. Be2 {[%emt 0:05:04]} d6 {[%emt 0:00:22]} 9. O-O {[%emt 0:00:24]} Nbd7 {[%emt 0:00:55]} 10. Rd1 {[%emt 0:04:59]} a6 {[%emt 0:01:19]} 11. b3 {[%emt 0:05:25]} Qc7 {[%emt 0:07:01]} 12. Ba3 {[%emt 0:17:40]} Rd8 {[%emt 0:07:47]} 13. Rac1 {[%emt 0:02:19]} b6 {[%emt 0:04:04]} 14. Nd4 {[%emt 0:03:40]} Bb7 {[%emt 0:03:05]} 15. Bf3 {[%emt 0:04:32]} Ne5 {[%emt 0:04:18]} 16. Qe2 {[%emt 0:05:55]} Nxf3+ {[%emt 0:01:38]} 17. Nxf3 {[%emt 0:05:25]} Rac8 {[%emt 0:03:36]} 18. Nd4 {[%emt 0:08:05]} Qb8 {[%emt 0:03:13]} 19. Na4 {[%emt 0:04:53]} Be4 {[%emt 0:04:28]} 20. f3 {[%emt 0:01:27]} Ba8 {[%emt 0:01:05]} 21. e4 {[%emt 0:03:03]} Qa7 {[%emt 0:03:42]} 22. Kh1 {[%emt 0:01:08]} Nd7 {[%emt 0:02:10]} 23. Nc2 {[%emt 0:04:31]} Nc5 {[%emt 0:00:59]} 24. Nxc5 {[%emt 0:00:32]} bxc5 {[%emt 0:01:03]} 25. Bb2 {[%emt 0:00:55]} Bg5 {[%emt 0:01:27]} 26. Rb1 {[%emt 0:00:40]} Qe7 {[%emt 0:00:30]} 27. Rd3 {[%emt 0:02:14]} Bf6 {[%emt 0:00:36]} 28. Bxf6 {[%emt 0:01:31]} Qxf6 {[%emt 0:00:06]} 29. Rbd1 {[%emt 0:00:07]} Qe7 {[%emt 0:00:44]} 30. Qd2 {[%emt 0:00:33]} f6 {[%emt 0:00:52]} 31. Rxd6 {[%emt 0:00:30]} Rxd6 {[%emt 0:02:51]} 32. Qxd6 {[%emt 0:00:06]} Kf8 {[%emt 0:06:44]} 33. Qxa6 {[%emt 0:00:39]} Rd8 {[%emt 0:01:10]} 34. Rxd8+ {[%emt 0:01:08]} Qxd8 {[%emt 0:00:08]} 35. Ne1 {[%emt 0:01:07]} e5 {[%emt 0:03:54]} 36. Qa3 {[%emt 0:01:26]} Qc8 {[%emt 0:00:37]} 37. Nd3 {[%emt 0:00:18]} 1-0

[Event "EYCC Girls U10 2018"]
[Site "Riga"]
[Date "2018.08.27"]
[Round "7"]
[White "Novikova, Daria"]
[Black "Gryga, Daryna"]
[Result "0-1"]
[ECO "A43"]
[WhiteElo "1256"]
[BlackElo "1756"]
[Annotator "NA"]
[PlyCount "172"]
[EventDate "2018.08.20"]
[EventType "swiss"]
[EventCountry "LAT"]
[SourceTitle "playchess.com"]
[Source "ChessBase"]
[SourceQuality "1"]
[TimeControl "40/5400+30:1800+30"]

1. d4 {[%emt 0:00:00]} c5 {[%emt 0:00:00]} 2. e3 {[%emt 0:00:00]} d5 {[%emt 0:00:10]} 3. Nf3 {[%emt 0:00:00]} Nc6 {[%emt 0:04:36]} 4. b3 {[%emt 0:04:40]} cxd4 {[%emt 0:00:08]} 5. exd4 {[%emt 0:00:20]} Nf6 {[%emt 0:02:03]} 6. Bb2 {[%emt 0:00:56]} Bf5 {[%emt 0:00:45]} 7. Bd3 {[%emt 0:00:57]} Bxd3 {[%emt 0:00:25]} 8. Qxd3 {[%emt 0:00:28]} e6 {[%emt 0:00:25]} 9. O-O {[%emt 0:02:52]} Bd6 {[%emt 0:00:18]} 10. Qe2 {[%emt 0:04:13]} O-O {[%emt 0:00:52]} 11. Nbd2 {[%emt 0:05:21]} Rc8 {[%emt 0:05:57]} 12. c4 {[%emt 0:03:33]} h6 {[%emt 0:08:18]} 13. Rac1 {[%emt 0:00:36]} Re8 {[%emt 0:03:42]} 14. Ne5 {[%emt 0:00:40]} Qe7 {[%emt 0:05:15]} 15. f4 {[%emt 0:13:55]} Nb4 {[%emt 0:04:25]} 16. a3 {[%emt 0:01:04]} Nc6 {[%emt 0:00:02]} 17. b4 {[%emt 0:07:47]} dxc4 {[%emt 0:01:15]} 18. Rxc4 {[%emt 0:02:42]} Nd5 {[%emt 0:00:44]} 19. Ne4 {[%emt 0:08:56]} Nb8 {[%emt 0:07:10]} 20. Nxd6 {[%emt 0:08:01]} Qxd6 {[%emt 0:00:13]} 21. Qh5 {[%emt 0:06:21]} Qe7 {[%emt 0:03:57]} 22. Rc5 {[%emt 0:03:43]} Nd7 {[%emt 0:02:35]} 23. Nxd7 {[%emt 0:03:19]} Qxd7 {[%emt 0:00:07]} 24. Qf3 {[%emt 0:04:38]} b6 {[%emt 0:03:55]} 25. Rcc1 {[%emt 0:00:11]} g6 {[%emt 0:17:33]} 26. Kh1 {[%emt 0:05:25]} h5 {[%emt 0:01:37]} 27. Rg1 {[%emt 0:01:33]} Qd6 {[%emt 0:02:31]} 28. g3 {[%emt 0:01:37]} Red8 {[%emt 0:01:54]} 29. Qe4 {[%emt 0:03:13]} Kg7 {[%emt 0:00:58]} 30. Rgd1 {[%emt 0:03:42]} Rh8 {[%emt 0:09:04]} 31. Rf1 {[%emt 0:00:51]} Rhd8 {[%emt 0:02:20]} 32. Rfd1 {[%emt 0:00:12]} Kh7 {[%emt 0:00:49]} 33. Rf1 {[%emt 0:00:15]} Re8 {[%emt 0:00:14]} 34. Rfd1 {[%emt 0:00:28]} Red8 {[%emt 0:01:16]} 35. Rf1 {[%emt 0:00:26]} Kg8 {[%emt 0:00:42]} 36. Rfe1 {[%emt 0:00:21]} h4 {[%emt 0:01:10]} 37. Kg2 {[%emt 0:00:26]} Kg7 {[%emt 0:00:36]} 38. Rf1 {[%emt 0:01:54]} hxg3 {[%emt 0:00:26]} 39. hxg3 {[%emt 0:00:00]} Rh8 {[%emt 0:00:00]} 40. Rh1 {[%emt 0:00:00]} Nf6 {[%emt 0:00:00]} 41. Rxh8 {[%emt 0:20:08]} Rxc1 {[%emt 0:12:08]} 42. Rg8+ {[%emt 0:05:50]} Kxg8 {[%emt 0:05:59]} 43. Qa8+ {[%emt 0:00:11]} Kg7 {[%emt 0:00:16]} 44. Bxc1 {[%emt 0:00:14]} Qxd4 {[%emt 0:02:12]} 45. Qf3 {[%emt 0:01:20]} Nd5 {[%emt 0:05:17]} 46. Qe2 {[%emt 0:01:13]} Kh7 {[%emt 0:03:22]} 47. Bb2 {[%emt 0:03:51]} Qe3 {[%emt 0:00:15]} 48. Qxe3 {[%emt 0:00:46]} Nxe3+ {[%emt 0:00:01]} 49. Kf3 {[%emt 0:00:13]} Nc4 {[%emt 0:01:28]} 50. Bc1 {[%emt 0:00:17]} Kg7 {[%emt 0:01:12]} 51. Ke4 {[%emt 0:00:29]} Kf6 {[%emt 0:00:13]} 52. g4 {[%emt 0:00:52]} Nd6+ {[%emt 0:01:04]} 53. Kd4 {[%emt 0:00:53]} Ke7 {[%emt 0:01:51]} 54. a4 {[%emt 0:01:54]} Kd7 {[%emt 0:01:11]} 55. Ke5 {[%emt 0:01:55]} Nc4+ {[%emt 0:00:43]} 56. Kd4 {[%emt 0:00:11]} Nd6 {[%emt 0:00:23]} 57. Ke5 {[%emt 0:00:05]} Ne8 {[%emt 0:00:42]} 58. Bb2 {[%emt 0:01:42]} a6 {[%emt 0:01:29]} 59. f5 {[%emt 0:01:11]} f6+ {[%emt 0:00:49]} 60. Kf4 {[%emt 0:00:04]} gxf5 {[%emt 0:00:19]} 61. gxf5 {[%emt 0:00:12]} exf5 {[%emt 0:00:07]} 62. Kxf5 {[%emt 0:00:10]} Ke7 {[%emt 0:00:06]} 63. Bd4 {[%emt 0:00:56]} b5 {[%emt 0:00:29]} 64. axb5 {[%emt 0:00:19]} axb5 {[%emt 0:00:01]} 65. Bc5+ {[%emt 0:00:35]} Kf7 {[%emt 0:00:08]} 66. Bd4 {[%emt 0:00:15]} Nd6+ {[%emt 0:00:28]} 67. Kf4 {[%emt 0:00:15]} Ke6 {[%emt 0:00:07]} 68. Bc5 {[%emt 0:00:22]} Nc4 {[%emt 0:00:52]} 69. Bd4 {[%emt 0:00:47]} f5 {[%emt 0:00:09]} 70. Bc3 {[%emt 0:00:38]} Nb6 {[%emt 0:00:33]} 71. Be1 {[%emt 0:00:28]} Nd5+ {[%emt 0:00:05]} 72. Kg3 {[%emt 0:00:25]} Ke5 {[%emt 0:00:06]} 73. Kf3 {[%emt 0:00:19]} f4 {[%emt 0:00:15]} 74. Bd2 {[%emt 0:00:21]} Kf5 {[%emt 0:02:36]} 75. Be1 {[%emt 0:00:10]} Nc7 {[%emt 0:01:13]} 76. Bd2 {[%emt 0:00:19]} Ne6 {[%emt 0:00:09]} 77. Bc3 {[%emt 0:00:39]} Ng5+ {[%emt 0:00:08]} 78. Kf2 {[%emt 0:00:19]} Ke4 {[%emt 0:00:07]} 79. Ke2 {[%emt 0:00:17]} f3+ {[%emt 0:00:14]} 80. Kf1 {[%emt 0:00:39]} Ne6 {[%emt 0:01:06]} 81. Kf2 {[%emt 0:00:19]} Nf4 {[%emt 0:00:12]} 82. Bd2 {[%emt 0:01:50]} Nd3+ {[%emt 0:00:10]} 83. Kf1 {[%emt 0:00:09]} f2 {[%emt 0:00:21]} 84. Bh6 {[%emt 0:00:51]} Kf3 {[%emt 0:00:43]} 85. Bf8 {[%emt 0:00:11]} Ne5 {[%emt 0:00:33]} 86. Bc5 {[%emt 0:00:33]} Ng4 {[%emt 0:00:07]} 0-1

[Event "EYCC Girls U10 2018"]
[Site "Riga"]
[Date "2018.08.28"]
[Round "8"]
[White "Gryga, Daryna"]
[Black "Shukhman, Anna"]
[Result "0-1"]
[ECO "C01"]
[WhiteElo "1756"]
[BlackElo "1577"]
[Annotator "NA RC"]
[PlyCount "106"]
[EventDate "2018.08.20"]
[EventType "swiss"]
[EventCountry "LAT"]
[SourceTitle "playchess.com"]
[Source "ChessBase"]
[SourceQuality "1"]
[TimeControl "40/5400+30:1800+30"]

1. e4 {[%emt 0:00:00]} e6 {[%emt 0:00:00]} 2. d4 {[%emt 0:00:47]} d5 {[%emt 0:00:00]} 3. exd5 {[%emt 0:00:58]} exd5 {[%emt 0:00:00]} 4. Nf3 {[%emt 0:00:45]} c5 {[%emt 0:02:52]} 5. dxc5 {[%emt 0:03:33]} Bxc5 {[%emt 0:00:10]} 6. Bd3 {[%emt 0:00:07]} Ne7 {[%emt 0:01:06]} 7. O-O {[%emt 0:00:31]} O-O {[%emt 0:00:31]} 8. Nc3 {[%emt 0:00:37]} Nbc6 {[%emt 0:00:55]} 9. Bg5 {[%emt 0:04:52]} h6 {[%emt 0:03:14]} 10. Bh4 {[%emt 0:01:04]} Be6 {[%emt 0:01:45]} 11. a3 {[%emt 0:07:46]} Rc8 {[%emt 0:04:18]} 12. Qd2 {[%emt 0:01:33]} Qd7 {[%emt 0:02:28]} 13. Bg3 {[%emt 0:02:33]} Rfd8 {[%emt 0:08:45]} 14. Rad1 {[%emt 0:00:49]} Bg4 {[%emt 0:08:35]} 15. Be2 {[%emt 0:01:47]} Bf5 {[%emt 0:04:42]} 16. Bd3 {[%emt 0:11:21]} Bg4 {[%emt 0:12:15]} 17. Be2 {[%emt 0:01:51]} Bd6 {[%emt 0:01:41]} 18. Bxd6 {[%emt 0:02:23]} Qxd6 {[%emt 0:01:36]} 19. Nb5 {[%emt 0:00:42]} Qg6 {[%emt 0:02:39]} 20. Nh4 {[%emt 0:11:01]} Qh5 {[%emt 0:01:34]} 21. Bxg4 {[%emt 0:00:49]} Qxg4 {[%emt 0:00:13]} 22. Nf3 {[%emt 0:00:11]} Nf5 {[%emt 0:05:09]} 23. h3 {[%emt 0:00:37]} Qg6 {[%emt 0:00:22]} 24. Rfe1 {[%emt 0:00:56]} d4 {[%emt 0:06:29]} 25. a4 {[%emt 0:04:58]} a6 {[%emt 0:03:02]} 26. Na3 {[%emt 0:00:15]} Qf6 {[%emt 0:10:05]} 27. Nc4 {[%emt 0:00:48]} d3 {[%emt 0:03:38]} 28. cxd3 {[%emt 0:01:25]} Ncd4 {[%emt 0:00:33]} 29. Nxd4 {[%emt 0:01:53]} Nxd4 {[%emt 0:00:12]} 30. b4 {[%emt 0:04:02]} Rxc4 {[%emt 0:04:00]} 31. dxc4 {[%emt 0:00:07]} Nf3+ {[%emt 0:00:17]} 32. gxf3 {[%emt 0:01:22]} Rxd2 {[%emt 0:00:13]} 33. Rxd2 {[%emt 0:00:06]} Qg5+ {[%emt 0:00:06]} 34. Kf1 {[%emt 0:00:59]} Qxd2 {[%emt 0:00:03]} 35. b5 {[%emt 0:01:15]} Qd3+ {[%emt 0:00:09]} 36. Kg2 {[%emt 0:00:07]} Qxc4 {[%emt 0:00:05]} 37. bxa6 {[%emt 0:00:14]} bxa6 {[%emt 0:00:07]} 38. Re4 {[%emt 0:00:07]} Qc6 {[%emt 0:00:10]} 39. Rd4 {[%emt 0:00:52]} Qg6+ {[%emt 0:00:15]} 40. Rg4 {[%emt 0:00:00]} Qc6 {[%emt 0:00:00]} 41. Re4 {[%emt 0:00:31]} f5 {[%emt 0:00:13]} 42. Rd4 {[%emt 0:01:00]} Qg6+ {[%emt 0:00:12]} 43. Kf1 {[%emt 0:01:08]} Qf6 {[%emt 0:00:10]} 44. Rc4 {[%emt 0:00:50]} a5 {[%emt 0:00:24]} 45. Kg2 {[%emt 0:00:42]} Qg6+ {[%emt 0:00:39]} 46. Kh2 {[%emt 0:01:06]} Qd6+ {[%emt 0:00:09]} 47. Kg2 {[%emt 0:00:10]} Qd5 {[%emt 0:00:06]} 48. Rc8+ {[%emt 0:07:50]} Kh7 {[%emt 0:00:13]} 49. Rf8 {[%emt 0:01:34]} Qc4 {[%emt 0:01:02]} 50. Rxf5 {[%emt 0:00:39]} Qxa4 {[%emt 0:00:08]} 51. Re5 {[%emt 0:00:11]} Qb4 {[%emt 0:00:05]} 52. Re4 {[%emt 0:00:04]} Qb3 {[%emt 0:00:05]} 53. Re3 {[%emt 0:00:07]} Qxe3 {[%emt 0:00:42]} 0-1

[Event "EYCC Girls U10 2018"]
[Site "Riga"]
[Date "2018.08.28"]
[Round "8"]
[White "Zhapova, Yana"]
[Black "Shvedova, Alexandra"]
[Result "1/2-1/2"]
[ECO "C45"]
[WhiteElo "1733"]
[BlackElo "1758"]
[Annotator "NA RC"]
[PlyCount "85"]
[EventDate "2018.08.20"]
[EventType "swiss"]
[EventCountry "LAT"]
[SourceTitle "playchess.com"]
[Source "ChessBase"]
[SourceQuality "1"]
[TimeControl "40/5400+30:1800+30"]

1. e4 {[%emt 0:00:00]} e5 {[%emt 0:00:00]} 2. Nf3 {[%emt 0:00:00]} Nc6 {[%emt 0:00:00]} 3. d4 {[%emt 0:00:03]} exd4 {[%emt 0:00:00]} 4. Nxd4 {[%emt 0:00:13]} Bc5 {[%emt 0:00:06]} 5. Nb3 {[%emt 0:00:53]} Bb6 {[%emt 0:00:09]} 6. Nc3 {[%emt 0:00:19]} d6 {[%emt 0:01:10]} 7. Qe2 {[%emt 0:00:28]} Be6 {[%emt 0:01:35]} 8. Be3 {[%emt 0:01:03]} Qe7 {[%emt 0:02:15]} 9. O-O-O {[%emt 0:01:03]} Nf6 {[%emt 0:01:17]} 10. g3 {[%emt 0:01:01]} O-O-O {[%emt 0:01:53]} 11. Bxb6 {[%emt 0:01:04]} axb6 {[%emt 0:00:08]} 12. Bg2 {[%emt 0:01:10]} Rhe8 {[%emt 0:08:13]} 13. Nd4 {[%emt 0:03:21]} Bd7 {[%emt 0:06:39]} 14. Ndb5 {[%emt 0:06:54]} Be6 {[%emt 0:10:37]} 15. h3 {[%emt 0:08:13]} Nd7 {[%emt 0:09:03]} 16. Nd4 {[%emt 0:09:08]} Qg5+ {[%emt 0:04:37]} 17. Kb1 {[%emt 0:08:31]} Nxd4 {[%emt 0:03:57]} 18. Rxd4 {[%emt 0:00:11]} f5 {[%emt 0:00:52]} 19. Qd2 {[%emt 0:11:31]} Qxd2 {[%emt 0:05:53]} 20. Rxd2 {[%emt 0:00:03]} Nf6 {[%emt 0:00:16]} 21. Re1 {[%emt 0:13:14]} fxe4 22. Nxe4 {[%emt 0:00:34]} Nxe4 {[%emt 0:12:04]} 23. Bxe4 {[%emt 0:00:08]} Bxh3 {[%emt 0:00:33]} 24. Rde2 {[%emt 0:00:12]} Rh8 {[%emt 0:06:03]} 25. Rh1 {[%emt 0:05:11]} Bg4 {[%emt 0:00:14]} 26. f3 {[%emt 0:00:30]} d5 {[%emt 0:00:12]} 27. fxg4 {[%emt 0:03:40]} dxe4 {[%emt 0:02:30]} 28. Rxe4 Rhe8 {[%emt 0:03:20]} 29. Rxe8 {[%emt 0:05:27]} Rxe8 {[%emt 0:00:05]} 30. Kc1 {[%emt 0:00:10]} h6 {[%emt 0:00:27]} 31. g5 {[%emt 0:01:26]} hxg5 {[%emt 0:00:24]} 32. Kd2 {[%emt 0:00:11]} Re4 {[%emt 0:04:02]} 33. Rf1 {[%emt 0:00:45]} Rg4 {[%emt 0:00:32]} 34. Rf3 {[%emt 0:00:14]} Kd8 {[%emt 0:00:58]} 35. Ke3 {[%emt 0:00:55]} Ke7 {[%emt 0:00:21]} 36. Kf2 {[%emt 0:00:10]} Rc4 {[%emt 0:03:17]} 37. c3 {[%emt 0:02:05]} Ke6 {[%emt 0:00:22]} 38. Re3+ {[%emt 0:01:30]} Kf6 {[%emt 0:00:07]} 39. Kf3 {[%emt 0:00:59]} Rc5 {[%emt 0:03:39]} 40. Rd3 {[%emt 0:00:00]} Rf5+ {[%emt 0:00:00]} 41. Ke2 {[%emt 0:01:50]} Rb5 {[%emt 0:04:51]} 42. Rd2 {[%emt 0:01:19]} Kg6 {[%emt 0:05:05]} 43. Kf3 1/2-1/2

[Event "EYCC Girls U10 2018"]
[Site "Riga"]
[Date "2018.08.28"]
[Round "8"]
[White "Svergina, Sofya"]
[Black "Rahimova, Aysel"]
[Result "1-0"]
[ECO "B90"]
[WhiteElo "1657"]
[BlackElo "1303"]
[Annotator "NA RC"]
[PlyCount "149"]
[EventDate "2018.08.20"]
[EventType "swiss"]
[EventCountry "LAT"]
[SourceTitle "playchess.com"]
[Source "ChessBase"]
[SourceQuality "1"]
[TimeControl "40/5400+30:1800+30"]

1. e4 {[%emt 0:00:13]} c5 {[%emt 0:00:00]} 2. Nf3 {[%emt 0:00:49]} d6 {[%emt 0:00:05]} 3. d4 {[%emt 0:00:23]} cxd4 {[%emt 0:00:32]} 4. Nxd4 {[%emt 0:00:26]} Nf6 {[%emt 0:00:12]} 5. Nc3 {[%emt 0:00:39]} a6 {[%emt 0:00:55]} 6. Be3 {[%emt 0:01:54]} e5 {[%emt 0:00:27]} 7. Nb3 {[%emt 0:01:30]} Be6 {[%emt 0:00:20]} 8. Be2 {[%emt 0:02:18]} Be7 {[%emt 0:01:19]} 9. O-O {[%emt 0:02:43]} O-O {[%emt 0:02:40]} 10. h3 {[%emt 0:02:07]} Nbd7 {[%emt 0:01:08]} 11. Qd2 {[%emt 0:01:02]} b5 {[%emt 0:01:48]} 12. Bf3 {[%emt 0:03:42]} Nb6 {[%emt 0:03:32]} 13. Na5 {[%emt 0:02:17]} Rc8 {[%emt 0:03:40]} 14. Rfd1 {[%emt 0:02:50]} Qc7 {[%emt 0:03:37]} 15. a3 {[%emt 0:14:20]} Rfd8 {[%emt 0:03:42]} 16. Rac1 {[%emt 0:07:23]} h6 {[%emt 0:18:10]} 17. Kh1 {[%emt 0:09:10]} d5 {[%emt 0:03:29]} 18. Bxb6 {[%emt 0:03:32]} Qxb6 {[%emt 0:00:11]} 19. Nxd5 {[%emt 0:00:20]} Nxd5 {[%emt 0:05:20]} 20. exd5 {[%emt 0:00:14]} Bg5 {[%emt 0:02:31]} 21. Qe1 {[%emt 0:02:24]} Bf5 {[%emt 0:04:28]} 22. Nc6 {[%emt 0:04:13]} Re8 {[%emt 0:08:25]} 23. Bg4 {[%emt 0:04:35]} Bxg4 {[%emt 0:05:03]} 24. hxg4 {[%emt 0:00:07]} Bxc1 {[%emt 0:01:32]} 25. Rxc1 {[%emt 0:00:07]} Rxc6 {[%emt 0:03:58]} 26. dxc6 {[%emt 0:00:20]} Qxc6 {[%emt 0:00:04]} 27. Qe2 {[%emt 0:03:30]} f6 {[%emt 0:02:36]} 28. Rd1 {[%emt 0:07:19]} Rc8 {[%emt 0:09:29]} 29. Rd2 {[%emt 0:00:13]} Qc4 {[%emt 0:00:46]} 30. Qxc4+ {[%emt 0:01:13]} Rxc4 {[%emt 0:00:10]} 31. f3 {[%emt 0:00:05]} Kf7 {[%emt 0:03:17]} 32. Kh2 {[%emt 0:00:35]} Ke6 {[%emt 0:02:56]} 33. Kg3 {[%emt 0:05:07]} g6 {[%emt 0:01:11]} 34. Kf2 {[%emt 0:00:22]} f5 {[%emt 0:00:35]} 35. gxf5+ {[%emt 0:00:17]} Kxf5 {[%emt 0:01:26]} 36. Ke3 {[%emt 0:00:27]} g5 {[%emt 0:00:20]} 37. g4+ {[%emt 0:00:13]} Ke6 {[%emt 0:00:27]} 38. Rh2 {[%emt 0:00:29]} Kd5 {[%emt 0:00:10]} 39. c3 {[%emt 0:00:14]} Rc6 {[%emt 0:00:13]} 40. Kd3 {[%emt 0:00:00]} Rf6 {[%emt 0:00:00]} 41. Rh3 {[%emt 0:02:18]} a5 {[%emt 0:04:59]} 42. b3 {[%emt 0:01:02]} Rf4 {[%emt 0:00:48]} 43. b4 {[%emt 0:04:23]} a4 {[%emt 0:00:28]} 44. Rg3 {[%emt 0:01:15]} e4+ {[%emt 0:04:23]} 45. fxe4+ {[%emt 0:01:17]} Rxe4 {[%emt 0:00:05]} 46. Rg2 {[%emt 0:06:31]} Rf4 {[%emt 0:01:08]} 47. Rg3 {[%emt 0:02:28]} Rf2 {[%emt 0:04:14]} 48. Rh3 {[%emt 0:00:08]} Rf6 {[%emt 0:00:44]} 49. Re3 {[%emt 0:00:50]} Rf4 {[%emt 0:00:55]} 50. Rg3 {[%emt 0:00:05]} Ke5 {[%emt 0:01:15]} 51. Re3+ {[%emt 0:00:17]} Kf6 {[%emt 0:01:21]} 52. Re4 {[%emt 0:00:54]} Rxe4 {[%emt 0:02:26]} 53. Kxe4 {[%emt 0:00:06]} Kg6 {[%emt 0:00:06]} 54. c4 {[%emt 0:00:23]} Kf6 {[%emt 0:01:58]} 55. cxb5 {[%emt 0:00:12]} Ke6 {[%emt 0:00:23]} 56. b6 {[%emt 0:00:04]} Kd6 {[%emt 0:00:03]} 57. b5 {[%emt 0:00:06]} Kd7 {[%emt 0:00:08]} 58. Kf5 {[%emt 0:00:05]} Kc8 {[%emt 0:00:06]} 59. Kg6 {[%emt 0:00:09]} Kb7 {[%emt 0:00:05]} 60. Kxh6 {[%emt 0:00:05]} Kxb6 {[%emt 0:00:03]} 61. Kxg5 {[%emt 0:00:17]} Kxb5 {[%emt 0:00:10]} 62. Kf4 {[%emt 0:00:05]} Kc4 {[%emt 0:00:06]} 63. g5 {[%emt 0:00:21]} Kb3 {[%emt 0:00:03]} 64. g6 {[%emt 0:00:05]} Kxa3 {[%emt 0:00:05]} 65. g7 {[%emt 0:00:04]} Kb2 {[%emt 0:00:16]} 66. g8=Q {[%emt 0:00:05]} a3 {[%emt 0:00:05]} 67. Qg2+ {[%emt 0:00:10]} Kb1 {[%emt 0:00:13]} 68. Qf1+ {[%emt 0:00:08]} Kb2 {[%emt 0:00:05]} 69. Qb5+ {[%emt 0:00:26]} Ka1 {[%emt 0:01:16]} 70. Ke3 {[%emt 0:00:17]} a2 {[%emt 0:00:06]} 71. Qa4 {[%emt 0:00:49]} Kb2 {[%emt 0:00:15]} 72. Qb4+ {[%emt 0:00:07]} Ka1 {[%emt 0:00:09]} 73. Qc3+ {[%emt 0:00:05]} Kb1 {[%emt 0:00:05]} 74. Kd2 {[%emt 0:00:05]} a1=Q {[%emt 0:00:22]} 75. Qc2# {[%emt 0:00:05]} 1-0